[Event "FIDE Zonal 4-2 Women 2023"]
[Site "Dimbroko"]
[Date "2023.03.30"]
[Round "7.2"]
[White "Yavo Tchetche, Marie"]
[Black "Marochkina, Nadezhda Valerevna"]
[Result "1/2-1/2"]
[ECO "E14"]
[WhiteElo "1413"]
[BlackElo "1689"]
[Annotator "NA RC COMBH"]
[PlyCount "73"]
[EventDate "2023.03.25"]
[EventType "swiss"]
[EventCountry "IVO"]
[SourceTitle "playchess.com"]
[Source "ChessBase"]
[SourceQuality "1"]
[TimeControl "40/5400+30:1800+30"]

1. c4 {[%emt 0:00:04]} b6 {[%emt 0:02:44]} 2. Nf3 {[%emt 0:00:49]} Bb7 {[%emt 0:00:57]} 3. Nc3 {[%emt 1:31:07]} Nf6 {[%emt 1:28:19]} 4. d4 {[%emt 0:00:00]} d5 {[%emt 0:00:00]} 5. e3 {[%emt 0:00:00]} e6 {[%emt 0:00:00]} 6. Be2 {[%emt 0:00:00]} c5 {[%emt 0:00:00]} 7. O-O {[%emt 0:00:00]} Be7 {[%emt 0:00:00]} 8. cxd5 {[%emt 0:00:00]} Nxd5 {[%emt 0:00:00]} 9. Bb5+ {[%emt 0:00:00]} Bc6 {[%emt 0:00:00]} 10. Bxc6+ {[%emt 0:03:30]} Nxc6 {[%emt 0:03:30]} 11. Qa4 {[%emt 0:00:00]} Qd7 {[%emt 0:00:00]} 12. e4 {[%emt 0:00:00]} Nxc3 {[%emt 0:00:00]} 13. bxc3 {[%emt 0:00:00]} cxd4 {[%emt 0:00:00]} 14. cxd4 {[%emt 0:00:00]} O-O {[%emt 0:00:00]} 15. Rd1 {[%emt 0:00:00]} Rfd8 {[%emt 0:00:00]} 16. Be3 {[%emt 0:00:00]} Nb4 {[%emt 0:00:00]} 17. Qxd7 {[%emt 0:00:00]} Rxd7 {[%emt 0:00:00]} 18. a4 {[%emt 0:00:00]} Rc8 {[%emt 0:00:00]} 19. Rac1 {[%emt 0:00:00]} Rdc7 {[%emt 0:00:00]} 20. Rxc7 {[%emt 0:00:00]} Rxc7 {[%emt 0:00:00]} 21. Rc1 {[%emt 0:00:00]} Rxc1+ {[%emt 0:00:00]} 22. Bxc1 {[%emt 0:00:00]} Nd3 {[%emt 0:00:00]} 23. Bd2 {[%emt 0:00:00]} a5 {[%emt 0:00:00]} 24. Bc3 {[%emt 0:00:00]} Bb4 {[%emt 0:00:00]} 25. Ba1 {[%emt 0:00:00]} Ba3 {[%emt 0:00:00]} 26. Ne5 {[%emt 0:00:00]} Nxe5 {[%emt 0:00:00]} 27. dxe5 {[%emt 0:00:00]} Bc5 {[%emt 0:00:00]} 28. Kf1 {[%emt 0:00:00]} Kf8 {[%emt 0:00:00]} 29. f3 {[%emt 0:00:00]} Ke7 {[%emt 0:00:00]} 30. Ke2 {[%emt 0:00:00]} Kd7 {[%emt 0:00:00]} 31. Kd3 {[%emt 0:00:00]} Kc6 {[%emt 0:00:00]} 32. Kc4 {[%emt 0:00:00]} g5 {[%emt 0:00:00]} 33. g4 {[%emt 0:00:00]} Bg1 {[%emt 0:00:00]} 34. h3 {[%emt 0:00:00]} Bc5 {[%emt 0:00:00]} 35. Bc3 {[%emt 0:00:00]} Be3 {[%emt 0:00:00]} 36. Ba1 {[%emt 0:00:00]} Bc5 {[%emt 0:00:00]} 37. Bc3 {[%emt 0:13:30]} 1/2-1/2

[Event "FIDE Zonal 4-2 Women 2023"]
[Site "Dimbroko"]
[Date "2023.03.30"]
[Round "7.4"]
[White "Princess K. Banney"]
[Black "Kouassi Edichy Berenice"]
[Result "1/2-1/2"]
[ECO "B23"]
[WhiteElo "1061"]
[BlackElo "1128"]
[Annotator "NA RC COMBH"]
[PlyCount "86"]
[EventDate "2023.03.25"]
[EventType "swiss"]
[EventCountry "IVO"]
[SourceTitle "playchess.com"]
[Source "ChessBase"]
[SourceQuality "1"]
[TimeControl "40/5400+30:1800+30"]

1. e4 {[%emt 0:00:09]} c5 {[%emt 0:00:35]} 2. Nc3 {[%emt 0:01:09]} Nc6 {[%emt 0:01:06]} 3. Bb5 {[%emt 0:01:10]} d6 {[%emt 0:05:40]} 4. Bxc6+ {[%emt 0:00:20]} bxc6 {[%emt 0:00:14]} 5. d4 {[%emt 0:02:10]} cxd4 {[%emt 0:02:01]} 6. Qxd4 {[%emt 0:00:21]} Nf6 {[%emt 0:00:12]} 7. Bg5 {[%emt 0:05:57]} e5 {[%emt 0:01:00]} 8. Qc4 {[%emt 0:01:25]} Bb7 {[%emt 0:01:21]} 9. Nf3 {[%emt 0:09:50]} Be7 {[%emt 0:02:39]} 10. Rd1 {[%emt 0:01:35]} Qc7 {[%emt 0:00:32]} 11. Bxf6 {[%emt 0:10:45]} gxf6 {[%emt 0:14:56]} 12. Nd5 {[%emt 0:07:54]} Qa5+ {[%emt 0:05:37]} 13. Nc3 {[%emt 0:01:28]} d5 {[%emt 0:09:34]} 14. Qb3 {[%emt 0:06:44]} Ba6 {[%emt 0:04:52]} 15. exd5 {[%emt 0:01:49]} O-O {[%emt 0:02:16]} 16. Qa4 {[%emt 0:05:51]} Qxa4 {[%emt 0:02:54]} 17. Nxa4 {[%emt 0:00:17]} cxd5 {[%emt 0:02:07]} 18. Rxd5 {[%emt 0:05:39]} Bc4 {[%emt 0:00:27]} 19. Rd7 {[%emt 0:01:11]} Bb4+ {[%emt 0:01:20]} 20. Nc3 {[%emt 0:01:28]} Rfd8 {[%emt 0:04:36]} 21. Rxd8+ {[%emt 0:03:51]} Rxd8 {[%emt 0:00:09]} 22. Nd2 {[%emt 0:00:16]} Bxa2 {[%emt 0:04:31]} 23. Kd1 {[%emt 0:02:24]} Be6 {[%emt 0:05:59]} 24. Kc1 {[%emt 0:01:49]} a5 {[%emt 0:07:18]} 25. Nde4 {[%emt 0:00:38]} Kg7 {[%emt 0:02:03]} 26. Rg1 {[%emt 0:01:27]} Kg6 {[%emt 0:02:27]} 27. g3 {[%emt 0:03:08]} f5 {[%emt 0:01:22]} 28. Nd2 {[%emt 0:01:32]} h5 {[%emt 0:01:20]} 29. Nf3 {[%emt 0:01:52]} f6 {[%emt 0:03:35]} 30. h3 {[%emt 0:03:13]} e4 {[%emt 0:00:54]} 31. Nh4+ {[%emt 0:01:21]} Kg5 {[%emt 0:00:13]} 32. Rd1 {[%emt 0:00:29]} Rxd1+ {[%emt 0:01:36]} 33. Kxd1 {[%emt 0:00:03]} f4 {[%emt 0:00:31]} 34. Nxe4+ {[%emt 0:00:51]} Kh6 {[%emt 0:00:32]} 35. gxf4 {[%emt 0:00:35]} Bxh3 {[%emt 0:00:34]} 36. Nf3 {[%emt 0:04:22]} Bg2 {[%emt 0:01:33]} 37. Ke2 {[%emt 0:00:59]} f5 {[%emt 0:00:50]} 38. Ng3 {[%emt 0:01:04]} Bh3 {[%emt 0:10:04]} 39. c3 {[%emt 0:12:54]} Bd6 {[%emt 0:00:00]} 40. Nh4 {[%emt 0:00:00]} Bg4+ {[%emt 0:00:00]} 41. f3 {[%emt 0:22:37]} Bxf4 {[%emt 0:28:55]} 42. Nhxf5+ {[%emt 0:01:12]} Bxf5 {[%emt 0:00:13]} 43. Nxf5+ {[%emt 0:00:30]} Kg5 {[%emt 0:00:06]} 1/2-1/2

[Event "FIDE Zonal 4-2 Women 2023"]
[Site "Dimbroko"]
[Date "2023.03.30"]
[Round "7.5"]
[White "Ayemou Akissi Victoire Sinchie"]
[Black "Oyenga, Justine Anassika"]
[Result "1-0"]
[ECO "C50"]
[WhiteElo "1177"]
[BlackElo "1187"]
[Annotator "NA RC COMBH"]
[PlyCount "83"]
[EventDate "2023.03.25"]
[EventType "swiss"]
[EventCountry "IVO"]
[SourceTitle "playchess.com"]
[Source "ChessBase"]
[SourceQuality "1"]
[TimeControl "40/5400+30:1800+30"]

1. e4 {[%emt 0:00:05]} e5 {[%emt 0:00:15]} 2. Nf3 {[%emt 0:00:17]} Nc6 {[%emt 0:00:14]} 3. Bc4 {[%emt 0:00:18]} Nd4 {[%emt 0:02:04]} 4. c3 {[%emt 0:01:17]} Nxf3+ {[%emt 0:01:11]} 5. Qxf3 {[%emt 0:00:32]} f6 {[%emt 0:00:52]} 6. O-O {[%emt 0:01:26]} Ne7 {[%emt 0:01:24]} 7. d4 {[%emt 0:01:50]} d6 {[%emt 0:02:13]} 8. dxe5 {[%emt 0:02:06]} Nc6 {[%emt 0:03:21]} 9. exf6 {[%emt 0:02:15]} Qxf6 {[%emt 0:03:45]} 10. Qxf6 {[%emt 0:06:46]} gxf6 {[%emt 0:00:19]} 11. b4 {[%emt 0:01:29]} Bd7 {[%emt 0:00:14]} 12. a4 {[%emt 0:00:33]} Ne5 {[%emt 0:03:07]} 13. Bb3 {[%emt 0:02:36]} Nd3 {[%emt 0:04:21]} 14. Be3 {[%emt 0:02:11]} O-O-O {[%emt 0:02:29]} 15. f4 {[%emt 0:02:35]} Bh6 {[%emt 0:01:52]} 16. g3 {[%emt 0:01:33]} Kb8 {[%emt 0:04:25]} 17. Rd1 {[%emt 0:03:29]} Ne5 {[%emt 0:02:01]} 18. Bd4 {[%emt 0:02:20]} Nf3+ {[%emt 0:01:02]} 19. Kg2 {[%emt 0:00:42]} Nxd4 {[%emt 0:00:52]} 20. cxd4 {[%emt 0:00:21]} Rde8 {[%emt 0:01:34]} 21. Nc3 {[%emt 0:00:54]} c6 {[%emt 0:07:03]} 22. e5 {[%emt 0:02:06]} fxe5 {[%emt 0:05:37]} 23. dxe5 {[%emt 0:00:41]} Bg7 {[%emt 0:02:46]} 24. Rxd6 {[%emt 0:01:05]} Kc7 {[%emt 0:04:03]} 25. Rad1 {[%emt 0:01:46]} Re7 {[%emt 0:01:02]} 26. Ne4 {[%emt 0:01:46]} Bg4 {[%emt 0:08:43]} 27. R1d2 {[%emt 0:01:41]} Bxe5 {[%emt 0:04:13]} 28. fxe5 {[%emt 0:02:14]} Rxe5 {[%emt 0:00:56]} 29. Nf6 {[%emt 0:00:45]} Bf5 {[%emt 0:03:57]} 30. R6d4 {[%emt 0:01:48]} Rf8 {[%emt 0:04:40]} 31. Nd7 {[%emt 0:00:57]} Bxd7 {[%emt 0:00:38]} 32. Rxd7+ {[%emt 0:00:18]} Kb6 {[%emt 0:01:14]} 33. Rxh7 {[%emt 0:00:28]} Re3 {[%emt 0:03:11]} 34. Bc4 {[%emt 0:01:30]} a5 {[%emt 0:03:19]} 35. b5 {[%emt 0:01:40]} Ra3 {[%emt 0:03:42]} 36. bxc6 {[%emt 0:01:00]} bxc6 {[%emt 0:01:52]} 37. Ra2 {[%emt 0:00:42]} Rc3 {[%emt 0:01:39]} 38. Rf7 {[%emt 0:00:58]} Rd8 {[%emt 0:00:38]} 39. Rb2+ {[%emt 0:01:01]} Kc5 {[%emt 0:00:36]} 40. Bb3 {[%emt 0:00:19]} Rb8 {[%emt 0:02:07]} 41. Rf3 {[%emt 0:30:59]} Kd4 {[%emt 0:32:26]} 42. Rd2+ {[%emt 0:52:11]} 1-0

[Event "FIDE Zonal 4-2 Women 2023"]
[Site "Dimbroko"]
[Date "2023.03.30"]
[Round "8.1"]
[White "Benson, Maud"]
[Black "Kouassi Edichy Berenice"]
[Result "1-0"]
[ECO "D12"]
[WhiteElo "1381"]
[BlackElo "1128"]
[Annotator "NA RC COMBH"]
[PlyCount "65"]
[EventDate "2023.03.25"]
[EventType "swiss"]
[EventCountry "IVO"]
[SourceTitle "playchess.com"]
[Source "ChessBase"]
[SourceQuality "1"]
[TimeControl "40/5400+30:1800+30"]

1. d4 {[%emt 0:00:06]} d5 {[%emt 0:01:01]} 2. c4 {[%emt 0:00:46]} c6 {[%emt 0:01:24]} 3. Nc3 {[%emt 0:00:25]} Nf6 {[%emt 0:00:35]} 4. e3 {[%emt 0:02:49]} Bf5 {[%emt 0:03:22]} 5. Nf3 {[%emt 0:00:30]} h6 {[%emt 0:00:30]} 6. cxd5 {[%emt 0:00:30]} Nxd5 {[%emt 0:00:30]} 7. Qb3 {[%emt 0:00:30]} Qb6 {[%emt 0:00:30]} 8. Nxd5 {[%emt 0:00:30]} Qxb3 {[%emt 0:00:30]} 9. Nc7+ {[%emt 0:00:30]} Kd8 {[%emt 0:00:30]} 10. axb3 {[%emt 0:00:30]} Kxc7 {[%emt 0:00:30]} 11. Bc4 {[%emt 0:00:30]} e6 {[%emt 0:00:30]} 12. Bd2 {[%emt 0:00:30]} Nd7 {[%emt 0:00:30]} 13. O-O {[%emt 0:00:30]} b5 {[%emt 0:00:30]} 14. Be2 {[%emt 0:00:30]} Bd6 {[%emt 0:00:30]} 15. Rfc1 {[%emt 0:09:28]} Kb7 {[%emt 0:26:09]} 16. b4 {[%emt 1:19:56]} Nb8 {[%emt 0:05:50]} 17. Ne5 {[%emt 0:00:00]} Bxe5 {[%emt 0:04:33]} 18. dxe5 {[%emt 0:00:00]} g5 {[%emt 0:00:24]} 19. g4 {[%emt 0:00:00]} Be4 {[%emt 0:00:40]} 20. f3 {[%emt 0:00:00]} Bd5 {[%emt 0:00:16]} 21. e4 {[%emt 0:00:00]} Bc4 {[%emt 0:00:13]} 22. Bxc4 {[%emt 0:00:00]} bxc4 {[%emt 0:00:23]} 23. Rxc4 {[%emt 0:00:00]} Rc8 {[%emt 0:00:19]} 24. Rac1 {[%emt 0:00:00]} a6 {[%emt 0:04:27]} 25. Be3 {[%emt 0:00:00]} Kc7 {[%emt 0:03:10]} 26. Kg2 {[%emt 0:00:00]} Kd7 {[%emt 0:00:24]} 27. Kg3 {[%emt 0:00:00]} Ke8 {[%emt 0:00:34]} 28. h4 {[%emt 0:00:00]} gxh4+ {[%emt 0:00:42]} 29. Kxh4 {[%emt 0:00:00]} Kf8 {[%emt 0:00:11]} 30. Bxh6+ {[%emt 0:00:00]} Kg8 {[%emt 0:00:13]} 31. f4 {[%emt 0:00:00]} Nd7 {[%emt 0:00:28]} 32. Rxc6 {[%emt 0:00:00]} Rxc6 {[%emt 0:02:56]} 33. Rxc6 {[%emt 0:00:00]} 1-0

[Event "FIDE Zonal 4-2 Women 2023"]
[Site "Dimbroko"]
[Date "2023.03.30"]
[Round "8.2"]
[White "Abigail Karyah"]
[Black "Ayemou Mazan Emmanuela Esther"]
[Result "1/2-1/2"]
[ECO "C68"]
[WhiteElo "1620"]
[BlackElo "1556"]
[Annotator "NA RC COMBH"]
[PlyCount "107"]
[EventDate "2023.03.25"]
[EventType "swiss"]
[EventCountry "IVO"]
[SourceTitle "playchess.com"]
[Source "ChessBase"]
[SourceQuality "1"]
[TimeControl "40/5400+30:1800+30"]

1. e4 {[%emt 0:00:02]} e5 {[%emt 0:00:16]} 2. Nf3 {[%emt 0:00:06]} Nc6 {[%emt 0:00:40]} 3. Bb5 {[%emt 0:00:09]} a6 {[%emt 0:00:42]} 4. Bxc6 {[%emt 0:00:11]} dxc6 {[%emt 0:00:12]} 5. h3 {[%emt 0:00:40]} Bd6 {[%emt 0:01:04]} 6. d4 {[%emt 0:02:39]} Qe7 {[%emt 0:02:24]} 7. dxe5 {[%emt 0:02:10]} Bxe5 {[%emt 0:09:20]} 8. Nxe5 {[%emt 0:00:30]} Qxe5 {[%emt 0:00:30]} 9. O-O {[%emt 0:00:30]} Bd7 {[%emt 0:00:30]} 10. Qf3 {[%emt 0:00:30]} Qf6 {[%emt 0:00:30]} 11. Qg3 {[%emt 0:00:30]} Qg6 {[%emt 0:00:30]} 12. Qxg6 {[%emt 0:00:30]} hxg6 {[%emt 0:00:30]} 13. Bf4 {[%emt 0:00:30]} O-O-O {[%emt 0:00:30]} 14. Nc3 {[%emt 0:00:30]} Nf6 {[%emt 0:00:30]} 15. Rfe1 {[%emt 0:00:30]} Nh5 {[%emt 0:00:30]} 16. Bh2 {[%emt 0:00:30]} g5 {[%emt 0:00:30]} 17. Rad1 {[%emt 0:00:30]} Nf4 {[%emt 0:00:30]} 18. Ne2 {[%emt 0:00:30]} Nxe2+ {[%emt 0:00:30]} 19. Rxe2 {[%emt 0:00:30]} g4 {[%emt 0:00:30]} 20. hxg4 {[%emt 0:00:30]} Bxg4 {[%emt 0:00:30]} 21. Rxd8+ {[%emt 0:00:30]} Rxd8 {[%emt 0:00:30]} 22. f3 {[%emt 0:00:30]} Be6 23. a3 {[%emt 0:00:30]} Rd1+ {[%emt 0:01:00]} 24. Kf2 {[%emt 0:17:34]} Bc4 {[%emt 0:00:15]} 25. Re1 {[%emt 0:00:34]} Rd2+ {[%emt 0:00:32]} 26. Kg1 {[%emt 0:02:04]} Rxc2 {[%emt 0:00:19]} 27. Be5 {[%emt 0:00:13]} f6 {[%emt 0:00:47]} 28. Bc3 {[%emt 0:01:24]} c5 {[%emt 0:02:52]} 29. e5 {[%emt 0:00:56]} f5 {[%emt 0:07:38]} 30. e6 {[%emt 0:03:19]} Re2 {[%emt 0:00:31]} 31. Rxe2 {[%emt 0:00:41]} Bxe2 {[%emt 0:00:24]} 32. Bxg7 {[%emt 0:00:03]} Bc4 {[%emt 0:00:23]} 33. e7 {[%emt 0:00:17]} Kd7 {[%emt 0:00:15]} 34. Bf6 {[%emt 0:00:12]} b5 {[%emt 0:00:32]} 35. g4 {[%emt 0:00:25]} f4 {[%emt 0:01:58]} 36. g5 {[%emt 0:00:51]} b4 {[%emt 0:00:20]} 37. axb4 {[%emt 0:00:55]} cxb4 {[%emt 0:00:12]} 38. g6 {[%emt 0:00:05]} c5 {[%emt 0:02:31]} 39. Kf2 {[%emt 0:01:07]} a5 {[%emt 0:00:41]} 40. Bg5 {[%emt 0:02:24]} a4 {[%emt 0:00:54]} 41. g7 {[%emt 0:31:21]} a3 {[%emt 0:30:53]} 42. bxa3 {[%emt 0:02:06]} bxa3 {[%emt 0:00:21]} 43. Bxf4 {[%emt 0:00:08]} Kxe7 {[%emt 0:01:01]} 44. Be5 {[%emt 0:00:15]} Bg8 {[%emt 0:00:38]} 45. f4 {[%emt 0:00:26]} Ke6 {[%emt 0:00:29]} 46. Ke3 {[%emt 0:03:03]} Bh7 {[%emt 0:01:02]} 47. Kd2 {[%emt 0:03:59]} a2 {[%emt 0:01:08]} 48. Kc1 {[%emt 0:00:42]} Bg8 {[%emt 0:00:30]} 49. Kd2 {[%emt 0:01:59]} Kd5 {[%emt 0:02:11]} 50. Bc3 {[%emt 0:03:19]} Ke4 {[%emt 0:00:35]} 51. Be5 {[%emt 0:01:22]} Bc4 {[%emt 0:02:24]} 52. Kc2 {[%emt 0:03:44]} Bg8 {[%emt 1:01:36]} 53. Kb2 {[%emt 0:47:35]} Kd3 {[%emt 0:00:00]} 54. Bd6 {[%emt 0:00:00]} 1/2-1/2

[Event "FIDE Zonal 4-2 Women 2023"]
[Site "Dimbroko"]
[Date "2023.03.30"]
[Round "8.5"]
[White "Ayemou Akissi Victoire Sinchie"]
[Black "Princess K. Banney"]
[Result "1/2-1/2"]
[ECO "C55"]
[WhiteElo "1177"]
[BlackElo "1061"]
[Annotator "NA RC COMBH"]
[PlyCount "78"]
[EventDate "2023.03.25"]
[EventType "swiss"]
[EventCountry "IVO"]
[SourceTitle "playchess.com"]
[Source "ChessBase"]
[SourceQuality "1"]
[TimeControl "40/5400+30:1800+30"]

1. e4 {[%emt 0:00:02]} e5 {[%emt 0:00:00]} 2. Nf3 {[%emt 0:00:08]} Nc6 {[%emt 0:00:08]} 3. Bc4 {[%emt 0:00:29]} Nf6 {[%emt 0:00:54]} 4. O-O {[%emt 0:00:57]} Nxe4 {[%emt 0:04:04]} 5. Bd5 {[%emt 0:00:55]} Nf6 {[%emt 0:05:59]} 6. Bxc6 {[%emt 0:01:00]} bxc6 {[%emt 0:00:22]} 7. Nxe5 {[%emt 0:01:00]} Bd6 {[%emt 0:01:02]} 8. Re1 {[%emt 0:03:23]} O-O {[%emt 0:00:53]} 9. Nc4 {[%emt 0:00:22]} Ba6 {[%emt 0:03:25]} 10. Nxd6 {[%emt 0:00:49]} cxd6 {[%emt 0:00:17]} 11. d3 {[%emt 0:01:12]} Rb8 {[%emt 0:00:59]} 12. c4 {[%emt 0:00:49]} Qb6 {[%emt 0:01:52]} 13. Nc3 {[%emt 0:00:44]} Rfe8 {[%emt 0:03:02]} 14. b3 {[%emt 0:01:24]} Rxe1+ {[%emt 0:00:51]} 15. Qxe1 {[%emt 0:00:26]} Re8 {[%emt 0:00:31]} 16. Qd1 {[%emt 0:00:39]} c5 {[%emt 0:02:08]} 17. Bg5 {[%emt 0:00:58]} Re6 {[%emt 0:01:18]} 18. h3 {[%emt 0:01:24]} Qc6 {[%emt 0:01:04]} 19. Qd2 {[%emt 0:01:11]} Bb7 {[%emt 0:02:06]} 20. f3 {[%emt 0:01:34]} h6 {[%emt 0:02:06]} 21. Bxf6 {[%emt 0:00:01]} Rxf6 {[%emt 0:01:26]} 22. Nd5 {[%emt 0:00:56]} Re6 {[%emt 0:00:38]} 23. Re1 {[%emt 0:00:36]} Rxe1+ {[%emt 0:01:07]} 24. Qxe1 {[%emt 0:00:20]} Qa6 {[%emt 0:08:10]} 25. Qe8+ {[%emt 0:00:59]} Kh7 {[%emt 0:01:01]} 26. Qxf7 {[%emt 0:00:51]} Bxd5 {[%emt 0:01:01]} 27. Qxd5 {[%emt 0:00:30]} Qxa2 {[%emt 0:01:33]} 28. Qxd6 {[%emt 0:00:54]} Qxb3 {[%emt 0:01:32]} 29. Qxc5 {[%emt 0:01:25]} a5 {[%emt 0:01:17]} 30. Qxa5 Qxd3 {[%emt 0:00:21]} 31. Qd5 {[%emt 0:00:59]} Qxd5 {[%emt 0:01:18]} 32. cxd5 {[%emt 0:00:16]} Kg6 {[%emt 0:00:18]} 33. Kf2 {[%emt 0:00:40]} Kf6 {[%emt 0:00:09]} 34. Ke3 {[%emt 0:00:20]} Ke5 {[%emt 0:00:02]} 35. f4+ {[%emt 0:00:34]} Kxd5 {[%emt 0:00:13]} 36. g4 {[%emt 0:00:57]} Ke6 {[%emt 0:01:24]} 37. h4 {[%emt 0:01:14]} g6 {[%emt 0:02:27]} 38. Ke4 {[%emt 0:00:48]} d5+ {[%emt 0:02:20]} 39. Kd4 {[%emt 0:01:52]} h5 {[%emt 0:01:44]} 1/2-1/2

[Event "FIDE Zonal 4-2 Women 2023"]
[Site "Dimbroko"]
[Date "2023.03.31"]
[Round "9.1"]
[White "Benson, Maud"]
[Black "Princess K. Banney"]
[Result "1/2-1/2"]
[ECO "D02"]
[WhiteElo "1381"]
[BlackElo "1061"]
[Annotator "NA RC COMBH"]
[PlyCount "61"]
[EventDate "2023.03.25"]
[EventType "swiss"]
[EventCountry "IVO"]
[SourceTitle "playchess.com"]
[Source "ChessBase"]
[SourceQuality "1"]
[TimeControl "40/5400+30:1800+30"]

1. d4 {[%emt 0:00:07]} d5 {[%emt 0:00:12]} 2. g3 {[%emt 0:00:14]} Nc6 {[%emt 0:00:40]} 3. Nf3 {[%emt 0:00:10]} Bf5 {[%emt 0:00:25]} 4. Bg2 {[%emt 0:00:35]} e6 {[%emt 0:00:41]} 5. O-O {[%emt 0:00:29]} Nf6 {[%emt 0:00:24]} 6. b3 {[%emt 0:02:16]} Be7 {[%emt 0:02:31]} 7. Na3 {[%emt 0:00:29]} O-O {[%emt 0:02:22]} 8. c4 {[%emt 0:00:11]} dxc4 {[%emt 0:06:28]} 9. Nxc4 {[%emt 0:00:25]} Bg4 {[%emt 0:03:46]} 10. e3 {[%emt 0:00:42]} Bd6 {[%emt 0:03:11]} 11. h3 {[%emt 0:01:03]} Bh5 {[%emt 0:02:55]} 12. Nxd6 {[%emt 0:01:13]} Qxd6 {[%emt 0:01:45]} 13. Qe2 {[%emt 0:02:54]} e5 {[%emt 0:05:30]} 14. g4 {[%emt 0:02:36]} Bg6 {[%emt 0:02:29]} 15. Rd1 {[%emt 0:02:41]} exd4 {[%emt 0:04:28]} 16. Nxd4 {[%emt 0:00:47]} Ne4 {[%emt 0:07:39]} 17. Bb2 {[%emt 0:01:41]} Qe7 {[%emt 0:03:56]} 18. Nxc6 {[%emt 0:00:40]} bxc6 {[%emt 0:00:22]} 19. Rac1 {[%emt 0:02:43]} Qe6 {[%emt 0:03:24]} 20. Rd4 {[%emt 0:00:51]} c5 {[%emt 0:04:55]} 21. Rdd1 {[%emt 0:01:31]} Rad8 {[%emt 0:01:01]} 22. Rxd8 {[%emt 0:05:00]} Rxd8 {[%emt 0:00:11]} 23. Bxe4 {[%emt 0:00:14]} Qxe4 {[%emt 0:04:11]} 24. Qc4 {[%emt 0:09:28]} Qxc4 {[%emt 0:00:45]} 25. Rxc4 {[%emt 0:00:29]} Rd2 {[%emt 0:04:07]} 26. Ba3 {[%emt 0:00:37]} Rxa2 {[%emt 0:00:32]} 27. Bxc5 {[%emt 0:00:19]} h6 {[%emt 0:01:40]} 28. Ra4 {[%emt 0:00:53]} Rxa4 {[%emt 0:00:39]} 29. bxa4 {[%emt 0:00:08]} a6 {[%emt 0:00:47]} 30. a5 {[%emt 0:00:16]} c6 {[%emt 0:00:45]} 31. Kh2 {[%emt 0:00:20]} 1/2-1/2

[Event "FIDE Zonal 4-2 Women 2023"]
[Site "Dimbroko"]
[Date "2023.03.31"]
[Round "9.2"]
[White "Abigail Karyah"]
[Black "Rodriguez Guevara, Celia M."]
[Result "1-0"]
[ECO "B01"]
[WhiteElo "1620"]
[BlackElo "1777"]
[Annotator "NA RC COMBH"]
[PlyCount "137"]
[EventDate "2023.03.25"]
[EventType "swiss"]
[EventCountry "IVO"]
[SourceTitle "playchess.com"]
[Source "ChessBase"]
[SourceQuality "1"]
[TimeControl "40/5400+30:1800+30"]

1. e4 {[%emt 0:00:02]} d5 {[%emt 0:00:06]} 2. exd5 {[%emt 0:00:25]} Qxd5 {[%emt 0:00:07]} 3. Nf3 {[%emt 0:00:13]} Nf6 {[%emt 0:00:19]} 4. Nc3 {[%emt 0:00:42]} Qa5 {[%emt 0:00:32]} 5. Be2 {[%emt 0:00:59]} Bf5 {[%emt 0:02:25]} 6. d3 {[%emt 0:04:15]} e6 {[%emt 0:02:45]} 7. O-O {[%emt 0:00:45]} Nbd7 {[%emt 0:06:27]} 8. a3 {[%emt 0:11:49]} c6 {[%emt 0:14:13]} 9. Bf4 {[%emt 0:13:57]} Be7 {[%emt 0:05:16]} 10. b4 {[%emt 0:05:53]} Qd8 {[%emt 0:00:43]} 11. Nh4 {[%emt 0:01:54]} Bg6 {[%emt 0:02:38]} 12. Nxg6 {[%emt 0:00:08]} hxg6 {[%emt 0:00:17]} 13. h3 {[%emt 0:00:27]} Nb6 {[%emt 0:13:05]} 14. Qd2 {[%emt 0:12:30]} Nfd5 {[%emt 0:19:06]} 15. Nxd5 {[%emt 0:10:33]} Nxd5 {[%emt 0:00:35]} 16. Bg3 {[%emt 0:00:12]} Bd6 {[%emt 0:07:37]} 17. Bxd6 {[%emt 0:04:59]} Qxd6 {[%emt 0:00:07]} 18. f4 {[%emt 0:02:48]} Rh4 {[%emt 0:01:37]} 19. Bg4 {[%emt 0:05:25]} f5 {[%emt 0:01:05]} 20. c4 {[%emt 0:00:10]} fxg4 {[%emt 0:04:08]} 21. cxd5 {[%emt 0:00:05]} Qxd5 {[%emt 0:07:02]} 22. hxg4 {[%emt 0:06:11]} O-O-O {[%emt 0:00:46]} 23. Rae1 {[%emt 0:07:19]} Qxd3 {[%emt 0:08:50]} 24. Qxd3 {[%emt 0:00:05]} Rxd3 {[%emt 0:00:04]} 25. Rf3 {[%emt 0:00:06]} Rd6 {[%emt 0:00:21]} 26. g5 {[%emt 0:00:18]} Kd7 {[%emt 0:00:19]} 27. g3 {[%emt 0:01:55]} Rh8 {[%emt 0:00:06]} 28. Rfe3 {[%emt 0:00:44]} Rf8 {[%emt 0:00:28]} 29. Kf2 {[%emt 0:02:00]} Rf5 {[%emt 0:00:05]} 30. Kf3 {[%emt 0:00:25]} Rfd5 {[%emt 0:01:22]} 31. Rh1 {[%emt 0:01:10]} Ke7 {[%emt 0:01:34]} 32. Rc1 {[%emt 0:03:09]} a5 {[%emt 0:00:26]} 33. Rb1 {[%emt 0:02:36]} Rb5 {[%emt 0:00:54]} 34. Reb3 {[%emt 0:00:28]} axb4 {[%emt 0:00:27]} 35. axb4 {[%emt 0:00:02]} Kd7 {[%emt 0:01:15]} 36. Ke3 {[%emt 0:00:08]} e5 {[%emt 0:00:08]} 37. R1b2 {[%emt 0:00:59]} exf4+ {[%emt 0:01:14]} 38. gxf4 {[%emt 0:00:01]} Ke6 {[%emt 0:00:00]} 39. Re2 {[%emt 0:04:13]} Kd5 {[%emt 0:01:31]} 40. Reb2 {[%emt 0:00:30]} Ke6 {[%emt 0:00:00]} 41. Re2 {[%emt 0:00:00]} Kd7 {[%emt 0:30:21]} 42. Rc2 {[%emt 0:26:29]} b6 {[%emt 0:00:30]} 43. Rcc3 {[%emt 0:00:11]} Rbd5 {[%emt 0:00:00]} 44. Rc4 {[%emt 0:00:00]} Re6+ {[%emt 0:00:00]} 45. Kf3 {[%emt 0:00:00]} Re7 {[%emt 0:00:00]} 46. Ra3 {[%emt 0:00:00]} Kd6 {[%emt 0:00:00]} 47. Ra6 {[%emt 0:00:00]} Rb7 {[%emt 0:00:00]} 48. Ra8 {[%emt 0:00:00]} b5 {[%emt 0:00:00]} 49. Re4 {[%emt 0:00:00]} Re7 {[%emt 0:00:00]} 50. Rd8+ {[%emt 0:00:00]} Rd7 {[%emt 0:00:00]} 51. Rde8 {[%emt 0:00:00]} Kc7 {[%emt 0:00:00]} 52. R8e6 {[%emt 0:00:00]} R5d6 {[%emt 0:00:00]} 53. R6e5 {[%emt 0:00:00]} Rd3+ {[%emt 0:00:00]} 54. Kg4 {[%emt 0:00:00]} Rd1 {[%emt 0:00:00]} 55. Re6 {[%emt 0:00:00]} R1d6 {[%emt 0:00:00]} 56. f5 {[%emt 0:00:16]} gxf5+ {[%emt 0:00:31]} 57. Kxf5 {[%emt 0:00:06]} Rf7+ {[%emt 0:01:41]} 58. Kg6 {[%emt 0:02:22]} Rfd7 {[%emt 0:01:40]} 59. Kh7 {[%emt 0:03:40]} Rxe6 {[%emt 0:03:39]} 60. Rxe6 {[%emt 0:00:09]} Rd4 {[%emt 0:00:20]} 61. Kxg7 {[%emt 0:00:09]} Rxb4 {[%emt 0:00:07]} 62. Kf7 {[%emt 0:01:06]} Rf4+ {[%emt 0:01:06]} 63. Rf6 {[%emt 0:00:23]} Rxf6+ {[%emt 0:00:16]} 64. Kxf6 {[%emt 0:00:39]} b4 {[%emt 0:00:13]} 65. g6 {[%emt 0:00:12]} b3 {[%emt 0:00:05]} 66. g7 {[%emt 0:00:06]} b2 {[%emt 0:00:10]} 67. g8=Q {[%emt 0:00:15]} b1=Q {[%emt 0:03:21]} 68. Qg3+ {[%emt 0:01:13]} Kb6 {[%emt 0:00:00]} 69. Qb8+ {[%emt 0:04:01]} 1-0